[Event "Titled Tuesday Blitz March 08 Early 2022"]
[White "Dronavalli, Harika"]
[Black "Fiorito, Fabian"]
[WhiteFideId "5015197"]
[BlackFideId "100200"]
[WhiteElo "2382"]
[BlackElo "2395"]
[Result "0-1"]
[Round "04"]
[TimeControl "180+1"]
[Date "2022.03.09"]
[WhiteClock "0:00:02"]
[BlackClock "0:00:11"]

1. d4 {[%clk 0:03:00]}  d5 {[%clk 0:03:00]} 2. Nf3 {[%clk 0:03:01]}  Nf6 {[%clk 0:03:00]} 3. Bf4 {[%clk 0:03:00]}  c5 {[%clk 0:03:00]} 4. e3 {[%clk 0:02:59]}  Nc6 {[%clk 0:03:00]} 5. Nbd2 {[%clk 0:02:54]}  cxd4 {[%clk 0:02:59]} 6. exd4 {[%clk 0:02:52]}  a6 {[%clk 0:02:59]} 7. Bd3 {[%clk 0:02:47]}  Nb4 {[%clk 0:02:59]} 8. Nf1 {[%clk 0:02:16]}  Nxd3+ {[%clk 0:02:57]} 9. Qxd3 {[%clk 0:02:16]}  Bd7 {[%clk 0:02:52]} 10. a4 {[%clk 0:02:13]}  Rc8 {[%clk 0:02:50]} 11. Ng3 {[%clk 0:02:11]}  Qb6 {[%clk 0:02:44]} 12. O-O {[%clk 0:02:00]}  e6 {[%clk 0:02:34]} 13. a5 {[%clk 0:01:49]}  Qb5 {[%clk 0:02:19]} 14. Qxb5 {[%clk 0:01:40]}  Bxb5 {[%clk 0:02:20]} 15. Rfc1 {[%clk 0:01:40]}  Be7 {[%clk 0:02:19]} 16. c3 {[%clk 0:01:40]}  O-O {[%clk 0:02:18]} 17. Bg5 {[%clk 0:01:36]}  h6 {[%clk 0:02:18]} 18. Bf4 {[%clk 0:01:33]}  Bc4 {[%clk 0:02:12]} 19. Ne5 {[%clk 0:01:28]}  Bb5 {[%clk 0:02:10]} 20. h3 {[%clk 0:01:28]}  Nd7 {[%clk 0:02:09]} 21. Nxd7 {[%clk 0:01:24]}  Bxd7 {[%clk 0:02:09]} 22. Nf1 {[%clk 0:01:24]}  Rc6 {[%clk 0:01:53]} 23. Nd2 {[%clk 0:01:23]}  Rfc8 {[%clk 0:01:49]} 24. Re1 {[%clk 0:01:12]}  b6 {[%clk 0:01:42]} 25. axb6 {[%clk 0:01:04]}  Rxb6 {[%clk 0:01:43]} 26. Ra2 {[%clk 0:01:03]}  Bb5 {[%clk 0:01:39]} 27. Rea1 {[%clk 0:01:02]}  f6 {[%clk 0:01:35]} 28. Re1 {[%clk 0:00:51]}  Kf7 {[%clk 0:01:35]} 29. Bg3 {[%clk 0:00:51]}  g5 {[%clk 0:01:20]} 30. f4 {[%clk 0:00:41]}  Bd6 {[%clk 0:01:17]} 31. Bh2 {[%clk 0:00:25]}  gxf4 {[%clk 0:01:17]} 32. Kf2 {[%clk 0:00:25]}  e5 {[%clk 0:01:16]} 33. dxe5 {[%clk 0:00:19]}  fxe5 {[%clk 0:01:17]} 34. Nf3 {[%clk 0:00:19]}  Bc4 {[%clk 0:01:11]} 35. b3 {[%clk 0:00:19]}  Bxb3 {[%clk 0:01:07]} 36. Rb2 {[%clk 0:00:19]}  Kf6 {[%clk 0:00:59]} 37. Reb1 {[%clk 0:00:15]}  Rxc3 {[%clk 0:00:58]} 38. Nd2 {[%clk 0:00:14]}  Bc5+ {[%clk 0:00:45]} 39. Kf1 {[%clk 0:00:15]}  Bc4+ {[%clk 0:00:37]} 40. Nxc4 {[%clk 0:00:14]}  Rxb2 {[%clk 0:00:38]} 41. Nxb2 {[%clk 0:00:15]}  Rb3 {[%clk 0:00:38]} 42. Bg1 {[%clk 0:00:12]}  Ba3 {[%clk 0:00:37]} 43. Ra1 {[%clk 0:00:10]}  Bxb2 {[%clk 0:00:37]} 44. Rxa6+ {[%clk 0:00:11]}  Kg5 {[%clk 0:00:36]} 45. h4+ {[%clk 0:00:10]}  Kxh4 {[%clk 0:00:35]} 46. Rxh6+ {[%clk 0:00:10]}  Kg5 {[%clk 0:00:35]} 47. Rd6 {[%clk 0:00:11]}  Rd3 {[%clk 0:00:33]} 48. Ke2 {[%clk 0:00:10]}  e4 {[%clk 0:00:33]} 49. Bb6 {[%clk 0:00:10]}  Be5 {[%clk 0:00:29]} 50. Bd8+ {[%clk 0:00:10]}  Kf5 {[%clk 0:00:29]} 51. Rd7 {[%clk 0:00:10]}  d4 {[%clk 0:00:27]} 52. Bb6 {[%clk 0:00:08]}  Rb3 {[%clk 0:00:23]} 53. Bxd4 {[%clk 0:00:08]}  Rd3 {[%clk 0:00:24]} 54. Rf7+ {[%clk 0:00:08]}  Ke6 {[%clk 0:00:24]} 55. Bxe5 {[%clk 0:00:09]}  Kxf7 {[%clk 0:00:23]} 56. Bxf4 {[%clk 0:00:10]}  Ke6 {[%clk 0:00:23]} 57. g4 {[%clk 0:00:08]}  Rf3 {[%clk 0:00:23]} 58. Be3 {[%clk 0:00:08]}  Ke5 {[%clk 0:00:22]} 59. Kd2 {[%clk 0:00:08]}  Rg3 {[%clk 0:00:21]} 60. g5 {[%clk 0:00:08]}  Kf5 {[%clk 0:00:21]} 61. Ke2 {[%clk 0:00:08]}  Ke5 {[%clk 0:00:15]} 62. Kf2 {[%clk 0:00:08]}  Rf3+ {[%clk 0:00:16]} 63. Ke2 {[%clk 0:00:09]}  Rg3 {[%clk 0:00:14]} 64. Kf2 {[%clk 0:00:09]}  Rg4 {[%clk 0:00:15]} 65. Ke2 {[%clk 0:00:06]}  Kd5 {[%clk 0:00:15]} 66. Bd2 {[%clk 0:00:04]}  Kd4 {[%clk 0:00:15]} 67. Be3+ {[%clk 0:00:05]}  Kc4 {[%clk 0:00:16]} 68. Bd2 {[%clk 0:00:05]}  Rg3 {[%clk 0:00:15]} 69. Bf4 {[%clk 0:00:05]}  Rf3 {[%clk 0:00:12]} 70. Be3 {[%clk 0:00:05]}  Kc3 {[%clk 0:00:12]} 71. Bf2 {[%clk 0:00:05]}  Kc4 {[%clk 0:00:11]} 72. g6 {[%clk 0:00:04]}  Rf6 {[%clk 0:00:10]} 73. g7 {[%clk 0:00:02]}  Rg6 {[%clk 0:00:11]} 0-1


[Site "https://www.chess.com"]

[Event "Titled Tuesday Blitz March 08 Early 2022"]
[White "Heinemann, Josefine"]
[Black "Chizhikov, Vladislav"]
[WhiteFideId "12900460"]
[BlackFideId "4178157"]
[WhiteElo "2300"]
[BlackElo "2120"]
[Result "0-1"]
[Round "04"]
[TimeControl "180+1"]
[Date "2022.03.09"]
[WhiteClock "0:00:01"]
[BlackClock "0:00:11"]

1. Nf3 {[%clk 0:03:00]}  c5 {[%clk 0:02:58]} 2. g3 {[%clk 0:03:00]}  Nc6 {[%clk 0:02:52]} 3. c4 {[%clk 0:02:56]}  g6 {[%clk 0:02:52]} 4. Bg2 {[%clk 0:02:56]}  Bg7 {[%clk 0:02:52]} 5. O-O {[%clk 0:02:56]}  d6 {[%clk 0:02:52]} 6. Nc3 {[%clk 0:02:55]}  Bd7 {[%clk 0:02:47]} 7. b3 {[%clk 0:02:49]}  Qc8 {[%clk 0:02:46]} 8. Bb2 {[%clk 0:02:49]}  Bh3 {[%clk 0:02:46]} 9. Qc2 {[%clk 0:02:43]}  h5 {[%clk 0:02:43]} 10. Ne4 {[%clk 0:02:35]}  Kf8 {[%clk 0:02:38]} 11. Bxg7+ {[%clk 0:02:35]}  Kxg7 {[%clk 0:02:38]} 12. Qc3+ {[%clk 0:02:35]}  f6 {[%clk 0:02:32]} 13. Neg5 {[%clk 0:02:19]}  Bxg2 {[%clk 0:02:21]} 14. Kxg2 {[%clk 0:02:20]}  Nd4 {[%clk 0:02:08]} 15. Nxd4 {[%clk 0:01:34]}  cxd4 {[%clk 0:02:06]} 16. Qxd4 {[%clk 0:01:35]}  e5 {[%clk 0:02:03]} 17. Qxd6 {[%clk 0:01:33]}  fxg5 {[%clk 0:02:03]} 18. Qxe5+ {[%clk 0:01:33]}  Kh7 {[%clk 0:01:58]} 19. Qxg5 {[%clk 0:01:32]}  Qc6+ {[%clk 0:01:56]} 20. f3 {[%clk 0:01:31]}  Re8 {[%clk 0:01:52]} 21. e4 {[%clk 0:01:30]}  Nf6 {[%clk 0:01:36]} 22. d4 {[%clk 0:01:18]}  Rhf8 {[%clk 0:01:33]} 23. d5 {[%clk 0:01:13]}  Qa6 {[%clk 0:01:32]} 24. e5 {[%clk 0:01:03]}  Nd7 {[%clk 0:01:24]} 25. Rfe1 {[%clk 0:00:56]}  Qa3 {[%clk 0:01:17]} 26. e6 {[%clk 0:00:46]}  Qb2+ {[%clk 0:01:14]} 27. Kg1 {[%clk 0:00:45]}  Rxf3 {[%clk 0:01:09]} 28. Qc1 {[%clk 0:00:24]}  Qd4+ {[%clk 0:01:00]} 29. Kh1 {[%clk 0:00:23]}  Nc5 {[%clk 0:00:58]} 30. Qd1 {[%clk 0:00:21]}  Rd3 {[%clk 0:00:51]} 31. Qe2 {[%clk 0:00:17]}  b5 {[%clk 0:00:39]} 32. Rf1 {[%clk 0:00:12]}  Re3 {[%clk 0:00:30]} 33. Qf2 {[%clk 0:00:11]}  Qe4+ {[%clk 0:00:21]} 34. Qg2 {[%clk 0:00:10]}  bxc4 {[%clk 0:00:19]} 35. bxc4 {[%clk 0:00:07]}  Qxc4 {[%clk 0:00:16]} 36. Rf7+ {[%clk 0:00:06]}  Kg8 {[%clk 0:00:16]} 37. Raf1 {[%clk 0:00:07]}  Qe4 {[%clk 0:00:15]} 38. Qxe4 {[%clk 0:00:03]}  Rxe4 {[%clk 0:00:15]} 39. Rxa7 {[%clk 0:00:04]}  Rb8 {[%clk 0:00:13]} 40. Kg2 {[%clk 0:00:03]}  Rb2+ {[%clk 0:00:12]} 41. Kh3 {[%clk 0:00:03]}  Ree2 {[%clk 0:00:13]} 42. Ra8+ {[%clk 0:00:04]}  Kg7 {[%clk 0:00:13]} 43. Rf7+ {[%clk 0:00:04]}  Kh6 {[%clk 0:00:13]} 44. g4 {[%clk 0:00:03]}  Rxh2+ {[%clk 0:00:12]} 45. Kg3 {[%clk 0:00:04]}  Rbg2+ {[%clk 0:00:12]} 46. Kf4 {[%clk 0:00:03]}  Nd3+ {[%clk 0:00:11]} 47. Ke3 {[%clk 0:00:03]}  Rh3+ {[%clk 0:00:11]} 48. Kd4 {[%clk 0:00:03]}  Rxg4+ {[%clk 0:00:11]} 49. Kc3 {[%clk 0:00:02]}  Kg5 {[%clk 0:00:11]} 50. Rg8 {[%clk 0:00:01]}  Ne5+ {[%clk 0:00:11]} 0-1


[Site "https://www.chess.com"]

[Event "Titled Tuesday Blitz March 08 Early 2022"]
[White "Hirneise, Jens"]
[Black "Johnson, Ben"]
[WhiteFideId "24614734"]
[BlackFideId "2010917"]
[WhiteElo "2359"]
[BlackElo "2195"]
[Result "1-0"]
[Round "04"]
[TimeControl "180+1"]
[Date "2022.03.09"]
[WhiteClock "0:01:02"]
[BlackClock "0:00:10"]

1. Nf3 {[%clk 0:03:00]}  d5 {[%clk 0:02:58]} 2. c4 {[%clk 0:02:58]}  e6 {[%clk 0:02:54]} 3. e3 {[%clk 0:02:56]}  Nf6 {[%clk 0:02:53]} 4. d4 {[%clk 0:02:54]}  Be7 {[%clk 0:02:47]} 5. Nc3 {[%clk 0:02:54]}  O-O {[%clk 0:02:46]} 6. cxd5 {[%clk 0:02:55]}  exd5 {[%clk 0:02:46]} 7. Bd3 {[%clk 0:02:56]}  Bg4 {[%clk 0:02:30]} 8. Qc2 {[%clk 0:02:55]}  c6 {[%clk 0:02:26]} 9. Ne5 {[%clk 0:02:55]}  Bh5 {[%clk 0:02:23]} 10. g4 {[%clk 0:02:56]}  Bg6 {[%clk 0:02:24]} 11. h4 {[%clk 0:02:55]}  Bxd3 {[%clk 0:02:18]} 12. Qxd3 {[%clk 0:02:55]}  Nbd7 {[%clk 0:02:03]} 13. g5 {[%clk 0:02:52]}  Nh5 {[%clk 0:02:00]} 14. Qe2 {[%clk 0:02:48]}  Nxe5 {[%clk 0:01:54]} 15. dxe5 {[%clk 0:02:49]}  g6 {[%clk 0:01:53]} 16. Bd2 {[%clk 0:02:45]}  d4 {[%clk 0:01:49]} 17. exd4 {[%clk 0:02:42]}  Qxd4 {[%clk 0:01:49]} 18. O-O-O {[%clk 0:02:42]}  Nf4 {[%clk 0:01:39]} 19. Bxf4 {[%clk 0:02:37]}  Qxf4+ {[%clk 0:01:40]} 20. Qe3 {[%clk 0:02:38]}  Qxe3+ {[%clk 0:01:37]} 21. fxe3 {[%clk 0:02:39]}  Bc5 {[%clk 0:01:37]} 22. Ne4 {[%clk 0:02:24]}  Bxe3+ {[%clk 0:01:32]} 23. Kc2 {[%clk 0:02:25]}  Rfd8 {[%clk 0:01:28]} 24. Nf6+ {[%clk 0:02:23]}  Kg7 {[%clk 0:01:27]} 25. Rd3 {[%clk 0:02:05]}  Rxd3 {[%clk 0:01:15]} 26. Kxd3 {[%clk 0:02:06]}  Bb6 {[%clk 0:01:09]} 27. h5 {[%clk 0:02:06]}  Rd8+ {[%clk 0:01:03]} 28. Ke4 {[%clk 0:02:01]}  Rd4+ {[%clk 0:00:59]} 29. Kf3 {[%clk 0:02:01]}  gxh5 {[%clk 0:00:52]} 30. Nxh5+ {[%clk 0:01:50]}  Kg6 {[%clk 0:00:45]} 31. Nf6 {[%clk 0:01:40]}  Bc7 {[%clk 0:00:38]} 32. Rh6+ {[%clk 0:01:24]}  Kxg5 {[%clk 0:00:32]} 33. Rxh7 {[%clk 0:01:24]}  Bxe5 {[%clk 0:00:29]} 34. Ne4+ {[%clk 0:01:24]}  Kf5 {[%clk 0:00:27]} 35. Rxf7+ {[%clk 0:01:22]}  Ke6 {[%clk 0:00:20]} 36. Rxb7 {[%clk 0:01:17]}  Kd5 {[%clk 0:00:17]} 37. Nc3+ {[%clk 0:01:14]}  Kc4 {[%clk 0:00:16]} 38. Ke2 {[%clk 0:01:08]}  Rh4 {[%clk 0:00:13]} 39. Na4 {[%clk 0:01:06]}  Rh2+ {[%clk 0:00:12]} 40. Ke3 {[%clk 0:01:05]}  a5 {[%clk 0:00:11]} 41. Ke4 {[%clk 0:01:03]}  Bd4 {[%clk 0:00:10]} 42. b3# {[%clk 0:01:02]} 1-0


[Site "https://www.chess.com"]

[Event "Titled Tuesday Blitz March 08 Early 2022"]
[White "Hryshchenko, Kamila"]
[Black "Roman, Rodrigo"]
[WhiteFideId "14147491"]
[BlackFideId "3701220"]
[WhiteElo "1929"]
[BlackElo "2001"]
[Result "0-1"]
[Round "04"]
[TimeControl "180+1"]
[Date "2022.03.09"]
[WhiteClock "0:00:02"]
[BlackClock "0:00:39"]

1. e4 {[%clk 0:03:00]}  c5 {[%clk 0:02:59]} 2. Nf3 {[%clk 0:03:00]}  d6 {[%clk 0:03:00]} 3. d4 {[%clk 0:02:56]}  cxd4 {[%clk 0:03:01]} 4. Qxd4 {[%clk 0:02:55]}  Nc6 {[%clk 0:03:01]} 5. Bb5 {[%clk 0:02:53]}  Bd7 {[%clk 0:03:00]} 6. Qd3 {[%clk 0:02:53]}  g6 {[%clk 0:02:57]} 7. c4 {[%clk 0:02:51]}  Bg7 {[%clk 0:02:56]} 8. O-O {[%clk 0:02:49]}  Nf6 {[%clk 0:02:50]} 9. Nc3 {[%clk 0:02:46]}  O-O {[%clk 0:02:49]} 10. h3 {[%clk 0:02:41]}  a6 {[%clk 0:02:48]} 11. Bxc6 {[%clk 0:02:39]}  Bxc6 {[%clk 0:02:49]} 12. Be3 {[%clk 0:02:37]}  Nd7 {[%clk 0:02:49]} 13. Nd4 {[%clk 0:02:33]}  Rc8 {[%clk 0:02:39]} 14. Rac1 {[%clk 0:02:32]}  Qa5 {[%clk 0:02:33]} 15. b3 {[%clk 0:02:15]}  Qh5 {[%clk 0:02:31]} 16. Nde2 {[%clk 0:02:08]}  Nc5 {[%clk 0:02:29]} 17. Qc2 {[%clk 0:02:07]}  b5 {[%clk 0:02:22]} 18. Nd5 {[%clk 0:01:32]}  Bxd5 {[%clk 0:02:19]} 19. exd5 {[%clk 0:01:33]}  bxc4 {[%clk 0:02:18]} 20. bxc4 {[%clk 0:01:32]}  Qf5 {[%clk 0:02:11]} 21. Qxf5 {[%clk 0:01:30]}  gxf5 {[%clk 0:02:11]} 22. Bd4 {[%clk 0:01:13]}  e5 {[%clk 0:02:05]} 23. dxe6 {[%clk 0:00:52]}  fxe6 {[%clk 0:02:04]} 24. Bxg7 {[%clk 0:00:50]}  Kxg7 {[%clk 0:02:04]} 25. Rfd1 {[%clk 0:00:50]}  Rfd8 {[%clk 0:02:03]} 26. Nd4 {[%clk 0:00:48]}  Kf6 {[%clk 0:02:02]} 27. f3 {[%clk 0:00:45]}  Rd7 {[%clk 0:01:53]} 28. Rb1 {[%clk 0:00:44]}  Rb7 {[%clk 0:01:46]} 29. Rxb7 {[%clk 0:00:33]}  Nxb7 {[%clk 0:01:47]} 30. Rb1 {[%clk 0:00:32]}  Nc5 {[%clk 0:01:40]} 31. Rb6 {[%clk 0:00:31]}  Ke5 {[%clk 0:01:39]} 32. Nc6+ {[%clk 0:00:29]}  Kf4 {[%clk 0:01:38]} 33. Kf2 {[%clk 0:00:17]}  Nd3+ {[%clk 0:01:28]} 34. Ke2 {[%clk 0:00:17]}  Nc5 {[%clk 0:01:28]} 35. Kf2 {[%clk 0:00:17]}  Kg5 {[%clk 0:01:20]} 36. g3 {[%clk 0:00:16]}  Kf6 {[%clk 0:01:20]} 37. Ke3 {[%clk 0:00:15]}  Rc7 {[%clk 0:01:18]} 38. f4 {[%clk 0:00:14]}  Rb7 {[%clk 0:01:16]} 39. Rxb7 {[%clk 0:00:12]}  Nxb7 {[%clk 0:01:16]} 40. Nb4 {[%clk 0:00:11]}  Nc5 {[%clk 0:01:16]} 41. Kd4 {[%clk 0:00:11]}  h5 {[%clk 0:01:16]} 42. h4 {[%clk 0:00:09]}  Ke7 {[%clk 0:01:15]} 43. Nc2 {[%clk 0:00:08]}  Kd7 {[%clk 0:01:15]} 44. Ne3 {[%clk 0:00:07]}  Kc6 {[%clk 0:01:15]} 45. a3 {[%clk 0:00:06]}  Nd7 {[%clk 0:01:10]} 46. Nf1 {[%clk 0:00:06]}  Nf6 {[%clk 0:01:08]} 47. Nd2 {[%clk 0:00:06]}  Nd7 {[%clk 0:01:07]} 48. Nf3 {[%clk 0:00:06]}  a5 {[%clk 0:01:00]} 49. Kc3 {[%clk 0:00:03]}  Kc5 {[%clk 0:01:00]} 50. Ne1 {[%clk 0:00:03]}  e5 {[%clk 0:00:58]} 51. Nd3+ {[%clk 0:00:03]}  Kc6 {[%clk 0:00:58]} 52. Nf2 {[%clk 0:00:02]}  e4 {[%clk 0:00:58]} 53. Nd1 {[%clk 0:00:02]}  d5 {[%clk 0:00:43]} 54. Ne3 {[%clk 0:00:02]}  Nb6 {[%clk 0:00:39]} 0-1


[Site "https://www.chess.com"]

[Event "Titled Tuesday Blitz March 08 Early 2022"]
[White "Ismayil, Malak"]
[Black "Dounis, Alexandros"]
[WhiteFideId "13412604"]
[BlackFideId "4213238"]
[WhiteElo "1879"]
[BlackElo "2204"]
[Result "1-0"]
[Round "04"]
[TimeControl "180+1"]
[Date "2022.03.09"]
[WhiteClock "0:00:29"]
[BlackClock "0:00:17"]

1. e4 {[%clk 0:03:00]}  e5 {[%clk 0:02:58]} 2. Nf3 {[%clk 0:02:59]}  Nc6 {[%clk 0:02:58]} 3. Bc4 {[%clk 0:02:59]}  Bc5 {[%clk 0:02:58]} 4. d3 {[%clk 0:02:58]}  d6 {[%clk 0:02:57]} 5. Nc3 {[%clk 0:02:57]}  Nf6 {[%clk 0:02:57]} 6. h3 {[%clk 0:02:55]}  h6 {[%clk 0:02:58]} 7. Be3 {[%clk 0:02:53]}  Bb6 {[%clk 0:02:57]} 8. Qd2 {[%clk 0:02:50]}  Be6 {[%clk 0:02:55]} 9. Bb3 {[%clk 0:02:49]}  Qd7 {[%clk 0:02:53]} 10. O-O-O {[%clk 0:02:44]}  Ba5 {[%clk 0:02:50]} 11. g4 {[%clk 0:02:37]}  Bxb3 {[%clk 0:02:43]} 12. axb3 {[%clk 0:02:37]}  d5 {[%clk 0:02:42]} 13. exd5 {[%clk 0:02:27]}  Nxd5 {[%clk 0:02:41]} 14. d4 {[%clk 0:02:27]}  e4 {[%clk 0:02:39]} 15. Ne5 {[%clk 0:02:24]}  Nxe5 {[%clk 0:02:29]} 16. dxe5 {[%clk 0:02:25]}  c6 {[%clk 0:02:25]} 17. Qd4 {[%clk 0:02:18]}  O-O {[%clk 0:02:07]} 18. Nxd5 {[%clk 0:02:16]}  cxd5 {[%clk 0:02:03]} 19. Qxd5 {[%clk 0:02:16]}  Qc7 {[%clk 0:01:58]} 20. Qxe4 {[%clk 0:02:13]}  Rac8 {[%clk 0:01:54]} 21. Kb1 {[%clk 0:02:11]}  Rfe8 {[%clk 0:01:53]} 22. f4 {[%clk 0:02:09]}  f6 {[%clk 0:01:48]} 23. e6 {[%clk 0:02:03]}  Kh8 {[%clk 0:01:41]} 24. f5 {[%clk 0:02:01]}  Re7 {[%clk 0:01:32]} 25. Bf4 {[%clk 0:01:53]}  Qc6 {[%clk 0:01:24]} 26. Qxc6 {[%clk 0:01:48]}  Rxc6 {[%clk 0:01:23]} 27. Rd6 {[%clk 0:01:44]}  Rc8 {[%clk 0:01:15]} 28. Rd5 {[%clk 0:01:38]}  Bb6 {[%clk 0:01:09]} 29. Rhd1 {[%clk 0:01:35]}  Kg8 {[%clk 0:01:03]} 30. c4 {[%clk 0:01:18]}  h5 {[%clk 0:00:54]} 31. gxh5 {[%clk 0:01:10]}  Kh7 {[%clk 0:00:53]} 32. Rd7 {[%clk 0:01:07]}  Rce8 {[%clk 0:00:53]} 33. b4 {[%clk 0:00:57]}  Bf2 {[%clk 0:00:45]} 34. Rxe7 {[%clk 0:00:46]}  Rxe7 {[%clk 0:00:43]} 35. c5 {[%clk 0:00:42]}  a6 {[%clk 0:00:41]} 36. Rd7 {[%clk 0:00:40]}  Re8 {[%clk 0:00:38]} 37. h6 {[%clk 0:00:40]}  a5 {[%clk 0:00:31]} 38. Rxg7+ {[%clk 0:00:37]}  Kh8 {[%clk 0:00:32]} 39. Rxb7 {[%clk 0:00:37]}  axb4 {[%clk 0:00:31]} 40. c6 {[%clk 0:00:37]}  b3 {[%clk 0:00:26]} 41. Rxb3 {[%clk 0:00:35]}  Bc5 {[%clk 0:00:19]} 42. Rb8 {[%clk 0:00:34]}  Rxb8 {[%clk 0:00:17]} 43. Bxb8 {[%clk 0:00:35]}  Bb6 {[%clk 0:00:17]} 44. c7 {[%clk 0:00:34]}  Bxc7 {[%clk 0:00:18]} 45. Bxc7 {[%clk 0:00:35]}  Kh7 {[%clk 0:00:17]} 46. e7 {[%clk 0:00:30]}  Kxh6 {[%clk 0:00:17]} 47. e8=Q {[%clk 0:00:30]}  Kg5 {[%clk 0:00:16]} 48. Qg6+ {[%clk 0:00:29]}  Kh4 {[%clk 0:00:17]} 49. Qg4# {[%clk 0:00:29]} 1-0


[Site "https://www.chess.com"]

[Event "Titled Tuesday Blitz March 08 Early 2022"]
[White "Jakubowski, Krzysztof"]
[Black "Toncheva, Nadya"]
[WhiteFideId "1112848"]
[BlackFideId "2924056"]
[WhiteElo "2365"]
[BlackElo "1884"]
[Result "1-0"]
[Round "04"]
[TimeControl "180+1"]
[Date "2022.03.09"]
[WhiteClock "0:01:19"]
[BlackClock "0:00:51"]

1. e4 {[%clk 0:03:00]}  c5 {[%clk 0:02:59]} 2. Nf3 {[%clk 0:02:58]}  d6 {[%clk 0:02:59]} 3. d4 {[%clk 0:02:58]}  cxd4 {[%clk 0:02:59]} 4. Nxd4 {[%clk 0:02:59]}  Nf6 {[%clk 0:03:00]} 5. Nc3 {[%clk 0:02:58]}  Nc6 {[%clk 0:03:00]} 6. Bg5 {[%clk 0:02:56]}  e6 {[%clk 0:03:00]} 7. Qd2 {[%clk 0:02:55]}  a6 {[%clk 0:03:00]} 8. O-O-O {[%clk 0:02:53]}  Bd7 {[%clk 0:03:00]} 9. f4 {[%clk 0:02:51]}  b5 {[%clk 0:03:00]} 10. Bxf6 {[%clk 0:02:50]}  gxf6 {[%clk 0:02:59]} 11. Kb1 {[%clk 0:02:46]}  Qb6 {[%clk 0:02:49]} 12. Nce2 {[%clk 0:02:44]}  Qc5 {[%clk 0:02:45]} 13. g3 {[%clk 0:02:33]}  Rc8 {[%clk 0:02:42]} 14. Bh3 {[%clk 0:02:24]}  Be7 {[%clk 0:02:36]} 15. f5 {[%clk 0:02:22]}  e5 {[%clk 0:02:22]} 16. Nb3 {[%clk 0:02:19]}  Qc4 {[%clk 0:02:11]} 17. Nc3 {[%clk 0:02:15]}  b4 {[%clk 0:01:50]} 18. Nd5 {[%clk 0:02:13]}  Qxe4 {[%clk 0:01:50]} 19. Rhe1 {[%clk 0:01:58]}  Qc4 {[%clk 0:01:32]} 20. Bf1 {[%clk 0:01:42]}  Qg4 {[%clk 0:01:19]} 21. Bxa6 {[%clk 0:01:38]}  Rd8 {[%clk 0:01:14]} 22. Qh6 {[%clk 0:01:21]}  Qxf5 {[%clk 0:00:51]} 23. Nc7# {[%clk 0:01:19]} 1-0


[Site "https://www.chess.com"]

[Event "Titled Tuesday Blitz March 08 Early 2022"]
[White "Jaskolka, Tomasz"]
[Black "Politov, Pavel Y."]
[WhiteFideId "1170791"]
[BlackFideId "24110515"]
[WhiteElo "2073"]
[BlackElo "2090"]
[Result "1-0"]
[Round "04"]
[TimeControl "180+1"]
[Date "2022.03.09"]
[WhiteClock "0:00:05"]
[BlackClock "0:00:01"]

1. e4 {[%clk 0:03:00]}  c5 {[%clk 0:02:59]} 2. Nf3 {[%clk 0:02:57]}  d6 {[%clk 0:03:00]} 3. d4 {[%clk 0:02:58]}  cxd4 {[%clk 0:03:01]} 4. Nxd4 {[%clk 0:02:59]}  Nf6 {[%clk 0:03:01]} 5. Nc3 {[%clk 0:02:59]}  a6 {[%clk 0:03:02]} 6. Bg5 {[%clk 0:02:58]}  e6 {[%clk 0:03:02]} 7. f4 {[%clk 0:02:57]}  h6 {[%clk 0:03:03]} 8. Bxf6 {[%clk 0:02:56]}  Qxf6 {[%clk 0:03:03]} 9. Qd2 {[%clk 0:02:56]}  g5 {[%clk 0:03:03]} 10. fxg5 {[%clk 0:02:52]}  Qxg5 {[%clk 0:02:56]} 11. O-O-O {[%clk 0:02:49]}  Qxd2+ {[%clk 0:02:53]} 12. Rxd2 {[%clk 0:02:50]}  Be7 {[%clk 0:02:53]} 13. Kb1 {[%clk 0:02:49]}  b5 {[%clk 0:02:49]} 14. g3 {[%clk 0:02:43]}  Bb7 {[%clk 0:02:48]} 15. Bg2 {[%clk 0:02:43]}  Nd7 {[%clk 0:02:48]} 16. a3 {[%clk 0:02:37]}  Ne5 {[%clk 0:02:43]} 17. Nf3 {[%clk 0:02:34]}  Nc4 {[%clk 0:02:37]} 18. Re2 {[%clk 0:02:30]}  Rc8 {[%clk 0:02:32]} 19. a4 {[%clk 0:02:14]}  b4 {[%clk 0:02:16]} 20. Nd1 {[%clk 0:01:59]}  a5 {[%clk 0:02:01]} 21. Nf2 {[%clk 0:01:55]}  Bf6 {[%clk 0:01:51]} 22. Nd3 {[%clk 0:01:49]}  Rc7 {[%clk 0:01:34]} 23. Rhe1 {[%clk 0:01:47]}  Ke7 {[%clk 0:01:32]} 24. e5 {[%clk 0:01:36]}  Nxe5 {[%clk 0:01:09]} 25. Nfxe5 {[%clk 0:01:35]}  Bxg2 {[%clk 0:00:41]} 26. Rxg2 {[%clk 0:01:15]}  dxe5 {[%clk 0:00:41]} 27. Nxe5 {[%clk 0:01:15]}  Rc5 {[%clk 0:00:37]} 28. Nd3 {[%clk 0:01:13]}  Rc4 {[%clk 0:00:36]} 29. Rf2 {[%clk 0:01:09]}  Rhc8 {[%clk 0:00:35]} 30. Ref1 {[%clk 0:01:09]}  Bg5 {[%clk 0:00:17]} 31. Rxf7+ {[%clk 0:01:08]}  Kd6 {[%clk 0:00:18]} 32. R1f2 {[%clk 0:00:52]}  b3 {[%clk 0:00:13]} 33. cxb3 {[%clk 0:00:51]}  Rd4 {[%clk 0:00:13]} 34. R2f3 {[%clk 0:00:44]}  e5 {[%clk 0:00:12]} 35. Nf2 {[%clk 0:00:37]}  e4 {[%clk 0:00:11]} 36. Nxe4+ {[%clk 0:00:18]}  Rxe4 {[%clk 0:00:11]} 37. Rd3+ {[%clk 0:00:17]}  Ke6 {[%clk 0:00:10]} 38. Ra7 {[%clk 0:00:18]}  Re1+ {[%clk 0:00:09]} 39. Ka2 {[%clk 0:00:18]}  Rcc1 {[%clk 0:00:09]} 40. Ra6+ {[%clk 0:00:17]}  Kf5 {[%clk 0:00:09]} 41. Rxa5+ {[%clk 0:00:17]}  Kg4 {[%clk 0:00:09]} 42. b4 {[%clk 0:00:17]}  Ra1+ {[%clk 0:00:09]} 43. Kb3 {[%clk 0:00:18]}  Re2 {[%clk 0:00:08]} 44. Rd4+ {[%clk 0:00:14]}  Kh3 {[%clk 0:00:08]} 45. b5 {[%clk 0:00:09]}  Rb1 {[%clk 0:00:08]} 46. Kc4 {[%clk 0:00:09]}  Rbxb2 {[%clk 0:00:08]} 47. Kc5 {[%clk 0:00:09]}  Rec2+ {[%clk 0:00:08]} 48. Rc4 {[%clk 0:00:09]}  Be3+ {[%clk 0:00:08]} 49. Kd5 {[%clk 0:00:10]}  Rxc4 {[%clk 0:00:08]} 50. Kxc4 {[%clk 0:00:10]}  Kxh2 {[%clk 0:00:08]} 51. Ra6 {[%clk 0:00:10]}  Kxg3 {[%clk 0:00:07]} 52. Rg6+ {[%clk 0:00:10]}  Kf2 {[%clk 0:00:07]} 53. a5 {[%clk 0:00:11]}  h5 {[%clk 0:00:06]} 54. Rf6+ {[%clk 0:00:10]}  Ke2 {[%clk 0:00:06]} 55. Re6 {[%clk 0:00:09]}  h4 {[%clk 0:00:06]} 56. b6 {[%clk 0:00:10]}  h3 {[%clk 0:00:06]} 57. Re5 {[%clk 0:00:09]}  h2 {[%clk 0:00:05]} 58. Rh5 {[%clk 0:00:09]}  Kd1 {[%clk 0:00:05]} 59. Kd5 {[%clk 0:00:09]}  Kc1 {[%clk 0:00:03]} 60. Kc6 {[%clk 0:00:09]}  Ra2 {[%clk 0:00:03]} 61. b7 {[%clk 0:00:09]}  Rb2 {[%clk 0:00:03]} 62. Rxh2 {[%clk 0:00:09]}  Rxh2 {[%clk 0:00:02]} 63. b8=Q {[%clk 0:00:09]}  Rb2 {[%clk 0:00:01]} 64. Qe5 {[%clk 0:00:08]}  Bd2 {[%clk 0:00:01]} 65. a6 {[%clk 0:00:06]}  Ra2 {[%clk 0:00:01]} 66. Kb7 {[%clk 0:00:04]}  Rb2+ {[%clk 0:00:01]} 67. Qxb2+ {[%clk 0:00:05]} 1-0


[Site "https://www.chess.com"]